bitfinex/quotes_BTCUSD_20241211
["timestamp","ask_amount","ask_price","bid_price","bid_amount"]
[1733877919209,0.0021714,96080.0,96079.0,0.76289223]
[1733877919448,0.0021714,96080.0,96079.0,0.75389223]
[1733877919449,0.0011714,96080.0,96079.0,0.75389223]
[1733877919644,0.0021714,96080.0,96079.0,0.76289223]
[1733877920226,0.0011714,96080.0,96079.0,0.75589223]
[1733877920418,0.0011714,96080.0,96079.0,0.76389223]
[1733877920419,0.0021714,96080.0,96079.0,0.76389223]
[1733877921683,0.0021714,96080.0,96079.0,0.61389223]
[1733877921995,0.0011714,96080.0,96079.0,0.60589223]
[1733877922471,0.0021714,96080.0,96079.0,0.61389223]
[1733877923258,0.0001716,96090.0,96089.0,0.15]
[1733877923438,0.0001716,96090.0,96089.0,0.74246524]
[1733877924532,0.0001714,96100.0,96099.0,0.587918]
[1733877924722,0.0001714,96110.0,96109.0,0.358097]
[1733877924934,0.0001714,96110.0,96109.0,0.69322224]
[1733877925144,0.0001714,96110.0,96109.0,0.7364039]
[1733877925296,0.0001714,96150.0,96119.0,0.208075]
[1733877925508,0.0001714,96150.0,96119.0,0.46340024]
[1733877925737,0.0001714,96150.0,96119.0,0.44240024]
[1733877925954,0.04,96149.0,96107.0,0.0798]
[1733877926141,0.208091,96112.0,96107.0,0.0798]
[1733877926340,0.208091,96112.0,96109.0,0.009]
[1733877926341,0.416182,96112.0,96109.0,0.009]
[1733877926672,0.208099,96108.0,96090.0,0.0798]
[1733877926877,0.208099,96108.0,96068.0,0.15]
[1733877926878,0.023,96106.0,96067.0,0.0798]
[1733877927069,0.023,96102.0,96067.0,0.0798]
[1733877927268,0.023,96100.0,96067.0,0.0798]
[1733877927468,0.023,96079.0,96068.0,0.0129]
[1733877927679,0.023,96072.0,96068.0,0.0129]
[1733877927908,0.023,96072.0,96052.0,0.0798]
[1733877928099,0.023,96078.0,96060.0,0.18737285]
[1733877928316,0.0001714,96120.0,96068.0,0.18737285]
[1733877928317,0.023,96090.0,96068.0,0.18737285]
[1733877928477,0.20814,96089.0,96071.0,0.416355]
[1733877928684,0.208166,96077.0,96061.0,0.208201]
[1733877928884,0.023,96076.0,96061.0,0.208201]
[1733877929086,0.023,96088.0,96052.0,0.0798]
[1733877929292,0.023,96074.0,96053.0,0.0129]
[1733877929861,0.001,96078.0,96074.0,0.20817]
[1733877930063,0.0001714,96120.0,96069.0,0.15]
[1733877930064,0.023,96109.0,96075.0,0.23162524]
[1733877930262,0.208087,96114.0,96093.0,0.20813]
[1733877930786,0.208087,96114.0,96080.0,0.18737285]
[1733877930787,0.208099,96108.0,96088.0,0.208141]
[1733877930976,0.208087,96114.0,96075.0,0.23162524]
[1733877930977,0.10532524,96099.0,96075.0,0.1263]
[1733877931209,0.20812,96098.0,96076.0,0.03287729]
[1733877931414,0.003,96088.0,96076.0,0.24104329]
[1733877931627,0.023,96087.0,96076.0,0.24104329]
[1733877931840,0.023,96087.0,96076.0,0.44921029]
[1733877931992,0.023,96087.0,96076.0,0.24104329]
[1733877932176,0.023,96087.0,96077.0,0.22301719]
[1733877932383,0.023,96091.0,96084.0,0.208149]
[1733877932594,0.023,96098.0,96080.0,0.18737285]
[1733877932798,0.208125,96096.0,96077.0,0.01485119]
[1733877933000,0.023,96095.0,96084.0,0.208151]
[1733877933212,0.001,96099.0,96085.0,0.0151]
[1733877933413,0.023,96103.0,96085.0,0.0151]
[1733877933831,0.208118,96099.0,96085.0,0.0151]
[1733877934032,0.023,96098.0,96085.0,0.0151]
[1733877934232,0.208118,96099.0,96077.0,0.01485119]
[1733877934438,0.0231714,96100.0,96082.0,0.208154]
[1733877934439,0.208123,96097.0,96082.0,0.208154]
[1733877934678,0.208123,96097.0,96077.0,0.01485119]
[1733877934679,0.023,96096.0,96077.0,0.01485119]
[1733877934945,0.023,96096.0,96084.0,0.001]
[1733877935377,0.10549664,96100.0,96084.0,0.209151]
[1733877935378,0.231118,96099.0,96084.0,0.209151]
[1733877935525,0.208125,96096.0,96078.0,0.24339622]
[1733877935725,0.208125,96096.0,96001.0,0.27682681]
[1733877935726,0.12832524,96095.0,96062.0,0.2306]
[1733877936013,0.023,96081.0,96063.0,0.31352124]
[1733877936171,0.023,96081.0,96062.0,0.2306]
[1733877936172,0.023,96081.0,96062.0,0.0806]
[1733877936324,0.023,96070.0,96062.0,0.0102854]
[1733877936523,0.023,96069.0,96050.0,0.288823]
[1733877936727,0.023,96069.0,96051.0,0.0334523]
[1733877936728,0.023,96066.0,96051.0,0.0334523]
[1733877937007,0.023,96058.0,96036.0,0.0806]
[1733877937224,0.208221,96052.0,96037.0,0.208252]
[1733877937405,0.023,96054.0,96037.0,0.208252]
[1733877937603,0.023,96052.0,96038.0,0.04045573]
[1733877938112,0.023,96057.0,96036.0,0.0806]
[1733877938373,0.023,96055.0,96030.0,0.0457]
[1733877938598,0.023,96048.0,96031.0,0.0253978]
[1733877938838,0.023,96046.0,96031.0,0.2336638]
[1733877939069,0.023,96048.0,96036.0,0.213253]
[1733877939339,0.023,96048.0,96037.0,0.03743068]
[1733877939588,0.023,96056.0,96046.0,0.208232]
[1733877939816,0.002,96057.0,96037.0,0.03743068]
[1733877939817,0.023,96054.0,96039.0,0.208248]
[1733877940036,0.15,96079.0,96030.0,0.44133885]
[1733877940037,0.15,96103.0,96041.0,0.208244]
[1733877940236,0.0001714,96120.0,96041.0,0.208244]
[1733877940237,0.10532524,96092.0,96050.0,0.18737285]
[1733877940514,0.10532524,96092.0,96060.0,0.18745845]
[1733877940768,0.208163,96079.0,96060.0,0.2082866]
[1733877941038,0.10532524,96092.0,96061.0,0.02082866]
[1733877941291,0.20816,96080.0,96068.0,0.208184]
[1733877941532,0.20816,96080.0,96061.0,0.02082866]
[1733877941533,0.208136,96091.0,96079.0,0.208161]
[1733877941790,0.208138,96091.0,96079.0,0.208161]
[1733877942057,0.208138,96091.0,96074.0,0.208171]
[1733877942313,0.208127,96096.0,96074.0,0.208171]
[1733877942314,0.005,96092.0,96079.0,0.208161]
[1733877942639,0.208136,96091.0,96080.0,0.0416332]
[1733877942840,0.2082874,96100.0,96080.0,0.0416332]
[1733877943103,0.2082874,96100.0,96092.0,0.208133]
[1733877943104,0.0001714,96100.0,96092.0,0.208133]
[1733877943320,0.10532524,96099.0,96069.0,0.01047916]
[1733877943526,0.10532524,96099.0,96067.0,0.0457]
[1733877943738,0.10532524,96099.0,96068.0,0.03010252]
[1733877943880,0.10532524,96099.0,96060.0,8.56e-05]
[1733877943881,0.416322,96080.0,96062.0,0.208198]
[1733877944079,0.023,96079.0,96067.0,0.208186]
[1733877944485,0.023,96083.0,96072.0,0.208176]
[1733877944666,0.023,96083.0,96069.0,0.208183]
[1733877944870,0.208155,96082.0,96069.0,0.208183]
[1733877945073,0.023,96083.0,96069.0,0.416366]
[1733877945315,0.208146,96086.0,96069.0,0.208183]
[1733877945520,0.023,96085.0,96070.0,0.0208183]
[1733877945717,0.023,96080.0,96070.0,0.0208183]
[1733877946726,0.023,96080.0,96071.0,0.041672]
[1733877946925,0.208172,96074.0,96071.0,0.041672]
[1733877947133,0.023,96080.0,96071.0,0.041672]
[1733877947383,0.208162,96079.0,96071.0,0.041672]
[1733877947610,0.023,96078.0,96071.0,0.041672]
[1733877947814,0.023,96078.0,96072.0,0.0250861]
[1733877948108,0.023,96080.0,96072.0,0.0250861]
[1733877949256,0.023,96080.0,96073.0,0.208175]
[1733877949965,0.023,96080.0,96072.0,0.0280861]
[1733877950198,0.023,96080.0,96078.0,0.208163]
[1733877951373,0.023,96080.0,96074.0,0.208172]
[1733877951724,0.023,96080.0,96079.0,0.208162]
[1733877952179,0.023,96080.0,96078.0,0.006]
[1733877952498,0.023,96080.0,96078.0,0.009]
[1733877952701,0.023,96080.0,96079.0,0.03503407]
[1733877953126,0.023,96080.0,96078.0,0.003]
[1733877953127,0.12832524,96080.0,96078.0,0.003]
[1733877953330,0.33648724,96079.0,96078.0,0.003]
[1733877953958,0.20817,96075.0,96074.0,0.006]
[1733877954178,0.208175,96073.0,96070.0,8.56e-05]
[1733877954395,0.208179,96071.0,96070.0,8.56e-05]
[1733877954590,0.35516535,96071.0,96070.0,8.56e-05]
[1733877955014,0.66751598,96071.0,96070.0,8.56e-05]
[1733877955222,0.81751598,96071.0,96070.0,8.56e-05]
[1733877955570,0.81751598,96071.0,96070.0,6e-07]
[1733877955741,0.81751598,96071.0,96070.0,0.0010006]
[1733877955922,0.81751598,96071.0,96060.0,8.56e-05]
[1733877955923,0.381201,96061.0,96060.0,8.56e-05]
[1733877956151,0.50518735,96061.0,96060.0,8.56e-05]
[1733877956989,0.35518735,96061.0,96060.0,8.56e-05]
[1733877957814,0.41867666,96061.0,96060.0,6e-07]
[1733877958016,0.35518735,96061.0,96060.0,6e-07]
[1733877958218,0.36218735,96061.0,96060.0,6e-07]
[1733877958417,0.36218735,96061.0,96002.0,0.254028]
[1733877958418,0.023,96022.0,96002.0,0.254028]
[1733877958636,0.023,96022.0,96010.0,0.01021007]
[1733877958866,0.01866111,96053.0,96014.0,0.041695]
[1733877958867,0.023,96028.0,96014.0,0.041695]
[1733877959069,0.023,96028.0,96015.0,0.01325051]
[1733877959220,0.023,96026.0,96015.0,0.01325051]
[1733877959659,0.208279,96025.0,96015.0,0.01325051]
[1733877959925,0.023,96024.0,96015.0,0.01325051]
[1733877961260,0.208265,96032.0,96015.0,0.01325051]
[1733877961261,0.023,96031.0,96015.0,0.01325051]
[1733877961487,0.12832524,96031.0,96016.0,0.01497793]
[1733877961702,0.208268,96030.0,96016.0,0.01497793]
[1733877961946,0.023,96029.0,96016.0,0.01497793]
[1733877962363,0.20827,96030.0,96016.0,0.01497793]
[1733877962364,0.023,96027.0,96016.0,0.01497793]
[1733877962576,0.023,96027.0,96017.0,0.03348795]
[1733877962783,0.20827,96030.0,96017.0,0.03348795]
[1733877962784,0.23127,96029.0,96017.0,0.03348795]
[1733877962990,0.20827,96030.0,96014.0,0.041695]
[1733877962991,0.208274,96027.0,96014.0,0.041695]
[1733877963197,0.023,96030.0,96002.0,0.0457]
[1733877963198,0.12832524,96026.0,96002.0,0.0457]
[1733877963399,0.208304,96014.0,96006.0,0.041695]
[1733877963601,0.023,96013.0,96006.0,0.041695]
[1733877963803,0.023,96018.0,96006.0,0.041695]
[1733877963949,0.023,96019.0,96006.0,0.041695]
[1733877964151,0.023,96017.0,96006.0,0.041695]
[1733877964561,0.023,96018.0,96006.0,0.041695]
[1733877964721,0.023,96030.0,96006.0,0.041695]
[1733877964923,0.001,96029.0,96008.0,0.208314]
[1733877965187,0.001,96029.0,96006.0,0.044695]
[1733877965407,0.023,96027.0,96006.0,0.044695]
[1733877965606,0.023,96027.0,96006.0,0.041695]
[1733877965811,0.023,96023.0,96007.0,0.02747679]
[1733877966012,0.208249,96039.0,96006.0,0.041695]
[1733877966013,0.023,96016.0,96006.0,0.041695]
[1733877966239,0.023,96016.0,96010.0,8.56e-05]
[1733877966432,0.023,96020.0,96010.0,8.56e-05]
[1733877966635,0.023,96018.0,96010.0,8.56e-05]
[1733877967039,0.023,96016.0,96010.0,8.56e-05]
[1733877967387,0.023,96014.0,96010.0,8.56e-05]
[1733877967596,0.231307,96012.0,96010.0,8.56e-05]
[1733877967792,0.12832524,96011.0,96010.0,8.56e-05]
[1733877968012,0.12832524,96011.0,96010.0,0.0010856]
[1733877968223,0.42832524,96011.0,96010.0,0.0010856]
[1733877968430,0.231352,95991.0,95990.0,8.57e-05]
[1733877968654,0.33667724,95991.0,95990.0,8.57e-05]
[1733877968881,0.023,95991.0,95990.0,8.57e-05]
[1733877969088,0.023,96002.0,95990.0,8.57e-05]
[1733877969293,0.208315,96008.0,95990.0,8.57e-05]
[1733877969294,0.023,95997.0,95990.0,8.57e-05]
[1733877969700,0.023,95998.0,95991.0,0.02084497]
[1733877970761,0.208339,95997.0,95991.0,0.02084497]
[1733877970980,0.023,95996.0,95990.0,0.0010857]
[1733877971165,0.023,95994.0,95990.0,8.57e-05]
[1733877971585,0.023,95996.0,95990.0,8.57e-05]
[1733877971719,0.001,95997.0,95990.0,8.57e-05]
[1733877971921,0.023,96000.0,95990.0,8.57e-05]
[1733877972155,0.208294,96018.0,96002.0,0.208327]
[1733877972766,0.10532524,96038.0,95993.0,0.208348]
[1733877972767,0.208312,96010.0,95993.0,0.208348]
[1733877972979,0.208317,96008.0,95992.0,0.0779]
[1733877973181,0.10532524,96038.0,95992.0,0.0779]
[1733877973408,0.023,96017.0,95999.0,0.208335]
[1733877973564,0.023,96015.0,95999.0,0.208335]
[1733877973768,0.023,96009.0,95995.0,0.208343]
[1733877973969,0.023,96009.0,95992.0,0.0779]
[1733877973970,0.208348,95993.0,95992.0,0.0779]
[1733877974285,0.231335,95999.0,95990.0,8.57e-05]
[1733877974483,0.023,95993.0,95990.0,8.57e-05]
[1733877975055,0.023,95991.0,95990.0,8.57e-05]
[1733877975250,0.33667724,95991.0,95990.0,8.57e-05]
[1733877975883,0.33667724,95991.0,95990.0,0.0050857]
[1733877976209,0.33667724,95991.0,95990.0,0.0010857]
[1733877976422,0.34367724,95991.0,95990.0,0.0020857]
[1733877977124,0.34367724,95991.0,95990.0,0.0010857]
[1733877977564,0.34867724,95991.0,95990.0,0.0010857]
[1733877977753,0.40437976,95991.0,95990.0,0.0010857]
[1733877978045,0.40437976,95991.0,95990.0,8.57e-05]
[1733877978046,0.54737976,95991.0,95990.0,8.57e-05]
[1733877978247,0.231374,95981.0,95980.0,8.56e-05]
[1733877978471,0.48669924,95981.0,95980.0,8.56e-05]
[1733877978670,0.56922877,95981.0,95980.0,8.56e-05]
[1733877979009,0.55036916,95981.0,95980.0,8.56e-05]
[1733877979949,0.48969924,95981.0,95980.0,8.56e-05]
[1733877980415,0.50859729,95981.0,95980.0,8.56e-05]
[1733877980620,0.30022329,95981.0,95970.0,8.57e-05]
[1733877980822,0.30022329,95981.0,95960.0,8.57e-05]
[1733877980823,0.358418,95961.0,95960.0,8.57e-05]
[1733877980970,0.41884653,95961.0,95960.0,8.57e-05]
[1733877981167,0.10532524,95961.0,95940.0,8.56e-05]
[1733877981472,0.10532524,95960.0,95950.0,0.18745855]
[1733877981672,0.208404,95968.0,95950.0,0.18745855]
[1733877981673,0.416808,95968.0,95950.0,0.18745855]
[1733877981880,0.208407,95966.0,95952.0,0.0492]
[1733877982086,0.009,95981.0,95952.0,0.0492]
[1733877982087,0.014,95981.0,95952.0,0.257636]
[1733877982292,0.10532524,95980.0,95963.0,0.208412]
[1733877982530,0.10532524,95980.0,95960.0,0.18737285]
[1733877982799,0.10532524,95980.0,95953.0,0.02323853]
[1733877982800,0.208382,95978.0,95953.0,0.02323853]
[1733877982988,0.10532524,95977.0,95953.0,0.01628639]
[1733877983214,0.10532524,95977.0,95961.0,0.208418]
[1733877983674,0.10532524,95977.0,95960.0,0.18737285]
[1733877983675,0.208389,95974.0,95960.0,0.18737285]
[1733877983883,0.10532524,95977.0,95961.0,0.208417]
[1733877984090,0.208397,95971.0,95962.0,0.0208417]
[1733877984300,0.023,95976.0,95961.0,0.208417]
[1733877984446,0.208369,95984.0,95967.0,0.208403]
[1733877984650,0.01908411,95994.0,95953.0,0.01628639]
[1733877984651,0.208362,95987.0,95968.0,0.0208403]
[1733877984873,0.10532524,95986.0,95969.0,0.2084]
[1733877985092,0.006,95978.0,95969.0,0.2084]
[1733877985313,0.10532524,95986.0,95969.0,0.2084]
[1733877985522,0.10532524,95986.0,95968.0,0.0208403]
[1733877985728,0.007,95984.0,95967.0,0.001]
[1733877985931,0.023,95975.0,95967.0,0.001]
[1733877986075,0.023,95982.0,95960.0,0.18737285]
[1733877986285,0.15,96003.0,95950.0,8.57e-05]
[1733877986286,0.208384,95977.0,95969.0,0.007]
[1733877986511,0.001,95978.0,95970.0,0.0799]
[1733877986710,0.001,95978.0,95974.0,0.416776]
[1733877986916,0.001,95978.0,95975.0,0.15452524]
[1733877987198,0.01027997,96014.0,95983.0,0.0799]
[1733877987405,0.01027997,96014.0,96013.0,0.1291]
[1733877987748,0.208262,96033.0,96014.0,0.208302]
[1733877988163,0.208273,96028.0,96014.0,0.208302]
[1733877988352,0.208262,96033.0,96013.0,0.337404]
[1733877988548,0.001,96014.0,96013.0,0.340404]
[1733877988791,0.001,96014.0,96013.0,0.1321]
[1733877989112,0.023,96014.0,96013.0,0.1321]
[1733877989891,0.023,96014.0,96013.0,0.1361]
[1733877989892,0.024,96014.0,96013.0,0.1361]
[1733877990460,0.024,96014.0,96013.0,0.1401]
[1733877990806,0.024,96014.0,96013.0,0.1361]
[1733877991013,0.001,96014.0,96013.0,0.24142524]
[1733877991174,0.001,96014.0,96013.0,0.24542524]
[1733877991374,0.0001714,96020.0,96014.0,0.566604]
[1733877991595,0.0001714,96020.0,96016.0,0.208298]
[1733877991815,0.0001714,96020.0,96019.0,0.0753]
[1733877992018,0.005,96081.0,96053.0,0.0753]
[1733877992222,0.005,96081.0,96054.0,0.208216]
[1733877992657,0.208174,96074.0,96056.0,0.208211]
[1733877993069,0.005,96081.0,96056.0,0.416422]
[1733877993742,0.005,96081.0,96058.0,0.208207]
[1733877993942,0.005,96081.0,96059.0,0.10532524]
[1733877995005,0.005,96081.0,96058.0,0.208207]
[1733877995402,0.023,96069.0,96059.0,0.009]
[1733877995604,0.023,96069.0,96053.0,0.0753]
[1733877995806,0.023,96069.0,96056.0,0.20821]
[1733877996005,0.023,96069.0,96059.0,0.009]
[1733877996235,0.023,96069.0,96059.0,0.10532524]
[1733877996854,0.023,96069.0,96059.0,0.11032524]
[1733877997229,0.023,96069.0,96059.0,0.10532524]
[1733877997632,0.0011712,96060.0,96059.0,0.12032524]
[1733877997832,0.0011712,96060.0,96059.0,0.11232524]
[1733877998013,0.0011712,96060.0,96059.0,0.12256549]
[1733877998213,0.0001712,96060.0,96059.0,0.12456549]
[1733877998419,0.0011712,96060.0,96059.0,0.13156549]
[1733877998621,0.0011712,96060.0,96059.0,0.12256549]
[1733877999007,0.0011712,96060.0,96059.0,0.13156549]
[1733877999624,0.0011712,96060.0,96059.0,0.28156549]
[1733877999825,0.005,96081.0,96080.0,0.283459]
[1733877999985,0.005,96081.0,96080.0,0.43548424]
[1733878000188,0.005,96081.0,96080.0,0.58548424]
[1733878000392,0.005,96081.0,96080.0,0.43548424]
[1733878001633,0.005,96081.0,96080.0,0.44990392]
[1733878001801,0.005,96081.0,96080.0,0.135]
[1733878001976,0.005,96081.0,96080.0,0.126]
[1733878002153,0.005,96081.0,96080.0,0.1594173]
[1733878002356,0.028,96081.0,96080.0,0.0883]
[1733878002545,0.028,96081.0,96080.0,0.013]
[1733878002951,0.028,96081.0,96080.0,0.009]
[1733878002952,0.13332524,96081.0,96080.0,0.009]
[1733878003386,0.13332524,96081.0,96080.0,0.014]
[1733878003638,0.41938756,96081.0,96080.0,0.014]
[1733878003838,0.49942524,96081.0,96080.0,0.005]
[1733878004038,0.64942524,96081.0,96080.0,0.014]
[1733878004254,0.13332524,96081.0,96080.0,0.014]
[1733878004455,0.13332524,96081.0,96034.0,0.01047855]
[1733878004456,0.023,96080.0,96073.0,0.208172]
[1733878004655,0.005,96081.0,96075.0,0.20817]
[1733878004855,0.005,96081.0,96080.0,0.006]
[1733878005375,0.005,96081.0,96080.0,0.11132524]
[1733878005690,0.005,96081.0,96080.0,0.11032524]
[1733878006012,0.005,96081.0,96080.0,0.10532524]
[1733878007231,0.0001714,96100.0,96099.0,0.208118]
[1733878007437,0.0001714,96100.0,96099.0,0.330118]
[1733878008365,0.0001714,96100.0,96099.0,0.44244324]
[1733878008653,0.0001714,96100.0,96099.0,0.58544324]
[1733878009055,0.0001714,96100.0,96099.0,0.44244324]
[1733878009255,0.0001714,96100.0,96099.0,0.45283875]
[1733878009739,0.0001714,96100.0,96099.0,0.44244324]
[1733878010185,0.0001714,96100.0,96099.0,0.343118]
[1733878010600,0.0001714,96100.0,96099.0,0.0883]
[1733878010772,0.0001714,96100.0,96099.0,0.0296431]
[1733878010972,0.0001714,96100.0,96099.0,0.0336431]
[1733878011378,0.0001714,96100.0,96099.0,0.0406431]
[1733878011578,0.0001714,96100.0,96099.0,0.13896834]
[1733878011984,0.0001714,96100.0,96099.0,0.14596834]
[1733878012208,0.0001714,96100.0,96099.0,0.13896834]
[1733878012399,0.0001714,96100.0,96099.0,0.13496834]
[1733878012978,0.0001714,96100.0,96099.0,0.13896834]
[1733878013223,0.0001714,96100.0,96099.0,0.13496834]
[1733878013635,0.0001714,96100.0,96099.0,0.14096834]
[1733878014384,0.0001714,96100.0,96099.0,0.29996834]
[1733878014587,0.0001714,96100.0,96099.0,0.40696834]
[1733878015038,0.0001714,96100.0,96099.0,0.41496834]
[1733878015562,0.0001714,96120.0,96099.0,0.41496834]
[1733878015563,0.0001714,96120.0,96109.0,0.15]
[1733878015768,0.0001714,96120.0,96109.0,0.28851062]
[1733878016202,0.0001714,96120.0,96119.0,0.208075]
[1733878016402,0.0001714,96120.0,96119.0,0.31340024]
[1733878016631,0.0001716,96170.0,96119.0,0.31340024]
[1733878016632,0.2081376,96170.0,96129.0,0.208053]
[1733878016805,0.2081376,96170.0,96129.0,0.31337824]
[1733878017062,0.2081376,96170.0,96129.0,0.34302134]
[1733878017445,0.207977,96165.0,96129.0,0.34302134]
[1733878017858,0.2081376,96170.0,96129.0,0.35702134]
[1733878018222,0.0001716,96170.0,96139.0,0.358032]
[1733878018418,4e-07,96140.0,96139.0,0.46335724]
[1733878018619,0.0001716,96170.0,96149.0,0.20801]
[1733878018828,0.0001716,96170.0,96149.0,0.31333524]
[1733878019841,0.0001716,96170.0,96149.0,0.32352961]
[1733878020466,0.0001716,96170.0,96149.0,0.32652961]
[1733878021028,0.0001716,96170.0,96149.0,0.31333524]
[1733878021241,4e-07,96160.0,96159.0,0.507988]
[1733878021467,0.0001714,96180.0,96176.0,0.15]
[1733878021672,0.0001714,96180.0,96179.0,0.207945]
[1733878021890,0.0001714,96180.0,96179.0,0.31327024]
[1733878022094,0.0001714,96180.0,96179.0,0.34645562]
[1733878022298,0.0001714,96180.0,96179.0,0.03318538]
[1733878022631,0.0001714,96180.0,96177.0,0.207949]
[1733878022839,0.0001714,96180.0,96177.0,0.415898]
[1733878023198,0.0001714,96180.0,96179.0,0.207945]
[1733878023416,0.0001714,96180.0,96179.0,0.31327024]
[1733878023617,0.0001714,96180.0,96179.0,0.36539216]
[1733878024171,0.07223321,96180.0,96179.0,0.41319216]
[1733878024294,0.07223321,96180.0,96179.0,0.64019216]
[1733878024494,0.00936473,96180.0,96179.0,0.59707024]
[1733878024696,0.00936473,96180.0,96179.0,0.59207024]
[1733878024962,0.00936473,96180.0,96179.0,0.44207024]
[1733878025375,0.00953593,96180.0,96179.0,0.44207024]
[1733878025571,0.00953593,96180.0,96179.0,0.45107024]
[1733878026004,0.00953593,96180.0,96179.0,0.44707024]
[1733878026430,0.00953593,96180.0,96179.0,0.60107024]
[1733878026580,0.00228706,96180.0,96179.0,0.60107024]
[1733878026782,0.023,96215.0,96201.0,0.207898]
[1733878027037,0.0144053,96220.0,96211.0,0.207876]
[1733878027238,0.00968076,96220.0,96211.0,0.207876]
[1733878027661,0.00968076,96220.0,96206.0,0.207885]
[1733878027871,0.207859,96219.0,96201.0,0.207898]
[1733878028200,0.415718,96219.0,96201.0,0.207898]
[1733878028401,0.207871,96214.0,96211.0,0.003]
[1733878028759,0.207874,96212.0,96179.0,0.081161]
[1733878028962,0.023,96190.0,96179.0,0.004161]
[1733878029163,0.023,96180.0,96166.0,0.077]
[1733878029453,0.023,96180.0,96172.0,0.20796]
[1733878029699,0.023,96184.0,96171.0,0.041625]
[1733878029901,0.023,96172.0,96171.0,0.041625]
[1733878030327,0.023,96172.0,96154.0,0.207997]
[1733878030476,0.023,96172.0,96152.0,0.208003]
[1733878030691,0.023,96172.0,96151.0,0.041633]
[1733878030868,0.207967,96169.0,96146.0,0.255815]
[1733878031069,0.207975,96165.0,96152.0,0.208003]
[1733878031270,0.023,96168.0,96147.0,0.041634]
[1733878031482,0.023,96149.0,96122.0,0.077]
[1733878031678,0.023,96142.0,96123.0,0.10532524]
[1733878032030,0.023,96142.0,96115.0,0.208084]
[1733878032159,0.023,96142.0,96114.0,0.15312524]
[1733878032370,0.023,96142.0,96120.0,0.28878714]
[1733878032569,0.023,96150.0,96138.0,0.208033]
[1733878032777,0.207986,96160.0,96144.0,0.20802]
[1733878032973,0.023,96158.0,96141.0,0.208027]
[1733878033212,0.023,96158.0,96123.0,0.208066]
[1733878033213,0.023,96156.0,96123.0,0.18173568]
[1733878033427,0.01876349,96186.0,96147.0,0.005]
[1733878033622,0.207934,96184.0,96147.0,0.10532524]
[1733878033824,0.207934,96184.0,96143.0,0.077]
[1733878033825,0.10532524,96183.0,96143.0,0.077]
[1733878034056,0.10532524,96183.0,96162.0,0.207981]
[1733878034261,0.10532524,96183.0,96158.0,0.207989]
[1733878034640,0.207967,96169.0,96154.0,0.207998]
[1733878034836,0.023,96171.0,96158.0,0.207989]
[1733878035243,0.207965,96170.0,96158.0,0.207989]
[1733878035560,0.023,96169.0,96155.0,0.207997]
[1733878035736,0.023,96169.0,96155.0,0.415994]
[1733878036092,0.023,96178.0,96143.0,0.18232524]
[1733878036217,0.023,96176.0,96163.0,0.207978]
[1733878036419,0.023,96176.0,96144.0,0.10532524]
[1733878036626,0.207932,96185.0,96160.0,0.28878714]
[1733878036821,0.207932,96185.0,96170.0,0.207964]
[1733878037034,0.207954,96176.0,96151.0,0.0479]
[1733878037252,0.10532524,96184.0,96154.0,0.001]
[1733878037647,0.207968,96169.0,96155.0,0.207997]
[1733878037852,0.207936,96183.0,96134.0,0.0479]
[1733878037853,0.023,96168.0,96144.0,0.208021]
[1733878038084,0.023,96168.0,96140.0,8.55e-05]
[1733878038085,0.023,96157.0,96140.0,8.55e-05]
[1733878038283,0.023,96154.0,96140.0,8.55e-05]
[1733878038495,0.207997,96155.0,96140.0,8.55e-05]
[1733878038496,0.023,96146.0,96140.0,8.55e-05]
[1733878038696,0.416039,96145.0,96140.0,8.55e-05]
[1733878038899,0.023,96146.0,96140.0,8.55e-05]
[1733878039099,0.023,96142.0,96140.0,8.55e-05]
[1733878039300,0.231027,96141.0,96140.0,8.55e-05]
[1733878039521,0.023,96141.0,96140.0,8.55e-05]
[1733878039677,0.023,96148.0,96140.0,8.55e-05]
[1733878039872,0.416039,96145.0,96140.0,8.55e-05]
[1733878040079,0.023,96144.0,96140.0,8.55e-05]
[1733878040279,0.023,96142.0,96140.0,0.0010855]
[1733878040475,0.10532524,96141.0,96140.0,0.0010855]
[1733878040684,0.33635224,96141.0,96140.0,0.0010855]
[1733878040948,0.33635224,96141.0,96140.0,8.55e-05]
[1733878041498,0.33635224,96141.0,96140.0,0.0030855]
[1733878041842,0.33635224,96141.0,96140.0,8.55e-05]
[1733878042061,0.33635224,96141.0,96140.0,0.0020855]
[1733878043878,0.12832524,96141.0,96140.0,0.0020855]
[1733878044694,0.208017,96146.0,96140.0,0.0020855]
[1733878044897,0.208027,96141.0,96140.0,0.0020855]
[1733878045075,0.31335224,96141.0,96140.0,0.0020855]
[1733878045279,0.31335224,96141.0,96140.0,8.55e-05]
[1733878045706,0.31335224,96141.0,96140.0,0.0020855]
[1733878045878,0.33635224,96141.0,96140.0,0.0020855]
[1733878046490,0.023,96141.0,96140.0,0.0020855]
[1733878046688,0.2161,96161.0,96140.0,0.0020855]
[1733878047067,0.207962,96172.0,96140.0,0.28887264]
[1733878047271,0.207956,96175.0,96141.0,0.10532524]
[1733878047490,0.10532524,96174.0,96163.0,0.20798]
[1733878047694,0.424023,96189.0,96163.0,0.20798]
[1733878047695,0.207947,96179.0,96163.0,0.20798]
[1733878047897,0.000171,96190.0,96141.0,0.10532524]
[1733878047898,0.000171,96190.0,96171.0,0.207962]
[1733878048103,0.10532524,96189.0,96171.0,0.207962]
[1733878048334,0.10532524,96189.0,96160.0,0.28878714]
[1733878048335,0.10532524,96189.0,96165.0,0.207975]
[1733878048537,0.207926,96188.0,96165.0,0.207975]
[1733878048760,0.207926,96188.0,96160.0,0.28878714]
[1733878048761,0.000171,96190.0,96167.0,0.0795]
[1733878048960,0.10532524,96189.0,96167.0,0.0795]
[1733878049369,0.207926,96188.0,96167.0,0.0795]
[1733878049497,0.10532524,96188.0,96173.0,0.207957]
[1733878049699,0.10532524,96188.0,96167.0,0.0795]